Cogmind - Beta 11.1 @@@ ROGUE MODE // 2022.06.11 @ 12:16:40 Player: ChromeKnight Result: Self-destructed Performance ------------- Evolutions (1) 500 Regions Visited (3) 600 Robots Destroyed (46) 230 Value Destroyed (1105) 1105 Prototype IDs (2) 40 Alien Tech Used (0) 0 Bonus (152) 152 TOTAL SCORE: 2627 Bonus ------- High Alert Combat Kills 87 Follower Combat Kills 79 Friendly Fire -14 Cogmind --------- Core Integrity 249/400 Matter 270/300 Energy 265/265 System Corruption 0% Temperature Cool (0) Movement Treading (160) Location -9/Materials Parts ------- > --- POWER (1) -------- Improved Ion Engine > --- PROPULSION (2) --- Improved Treads Improved Treads > --- UTILITY (4) ------ Heat Sink Large Storage Unit Improved Targeting Computer Hardened Light Armor Plating > --- WEAPON (2) ------- Pulse Rifle Pulse Rifle > --- INVENTORY (15) --- Light Nuclear Core Light Treads Improved Treads Improved Flight Unit Improved Flight Unit Heat Sink Experimental Sensor Array Improved Weapon Shielding Improved Weapon Shielding Hardened Light Armor Plating Hardened Light Armor Plating Particle Gun Pulse Rifle Pulse Rifle Rocket Launcher Peak State ------------ > --- POWER ------------ Improved Ion Engine > --- PROPULSION ------- Improved Treads Improved Treads > --- UTILITY ---------- Heat Sink Large Storage Unit Improved Targeting Computer Hardened Light Armor Plating > --- WEAPON ----------- Pulse Rifle Pulse Rifle > --- INVENTORY -------- Light Nuclear Core Light Treads Light Treads Improved Flight Unit Improved Flight Unit Heat Sink Experimental Sensor Array Improved Weapon Shielding Improved Weapon Shielding Hardened Light Armor Plating Hardened Light Armor Plating Particle Gun Pulse Rifle Pulse Rifle Rocket Launcher [Rating: 22] Favorites ----------- Power Light Nuclear Core Engine Ion Engine Power Core Light Nuclear Core Propulsion Light Treads Treads Light Treads Flight Unit Improved Flight Unit Utility Hardened Light Armor Plating Device Improved Heat Sink Storage Large Storage Unit Processor Improved Targeting Computer Protection Hardened Light Armor Plating Weapon Light Assault Rifle Energy Gun Beam Rifle Ballistic Gun Light Assault Rifle Build | -11 -10 -10 -9 ------- Run | Scr Mat Min Mat Slots Evolved 2 | . . . 2 Power . | . . . . Propulsion . | . . . . Utility 2 | . . . 2 Weapon . | . . . . Parts Attached 50 | 6 7 2 35 Power 7 | 1 2 . 4 Engine 5 | 1 2 . 2 Core 2 | . . . 2 Reactor . | . . . . Propulsion 12 | 2 . . 10 Treads 11 | 2 . . 9 Leg . | . . . . Wheel . | . . . . Hover . | . . . . Flight 1 | . . . 1 Utility 20 | 1 3 2 14 Device 6 | . . 1 5 Storage 4 | 1 1 . 2 Processor 3 | . . . 3 Hackware . | . . . . Protection 7 | . 2 1 4 Artifact . | . . . . Weapon 11 | 2 2 . 7 Energy Gun 7 | . . . 7 Energy Cannon . | . . . . Ballistic Gun 4 | 2 2 . . Ballistic Cannon . | . . . . Launcher . | . . . . Special Weapon . | . . . . Impact Weapon . | . . . . Slashing Weapon . | . . . . Piercing Weapon . | . . . . Special Melee Weapon . | . . . . Unidentified Prototypes 2 | . . 1 1 Parts Lost 2 | . . . 2 Power . | . . . . Propulsion . | . . . . Utility 2 | . . . 2 Weapon . | . . . . Highest Loss Streak 1 | . . . 1 To Critical Strikes . | . . . . Average Slot Usage (%) 99 | . 98 99 99 Engine 8 | . 14 14 4 Core 3 | . . . 6 Treads 24 | . 28 28 22 Device 6 | . . . 10 Storage 12 | . 14 14 11 Processor 3 | . . . 5 Protection 15 | . 12 13 16 Energy Gun 12 | . . . 22 Ballistic Gun 11 | . 28 28 . Naked Turns . | . . . . Heaviest Build 42 | 11 32 32 42 Greatest Support 46 | 40 40 40 46 Greatest Overweight (x) 1 | . . . 1 Average Overweight (x) . | . . . . Largest Inventory Capacity 15 | 8 15 15 15 Average Capacity 14 | 7 14 15 15 Most Carried 15 | 1 13 15 15 Average Carried 11 | . 5 13 13 Final Capacity 15 | 8 15 15 15 Final Carried 15 | 1 13 14 15 Class Distribution -------------------- 94% | Mutant 5% | Scavenger-Mutant Dominant Class ---------------- Mutant | -10/Materials Mutant | -10/Mines Mutant | -9/Materials Resources | -11 -10 -10 -9 ----------- Run | Scr Mat Min Mat Matter Collected 834 | 192 246 79 317 Remotely . | . . . . Salvage Created 1620 | . 372 . 1248 Parts 93 | . 23 . 70 Haulers Intercepted 3 | . . . 3 Recyclers Shooed 2 | . 1 . 1 Parts Field Recycled . | . . . . Retrieved Matter . | . . . . Parts Self-Destructed . | . . . . Prevented . | . . . . Kills | -11 -10 -10 -9 ------- Run | Scr Mat Min Mat Combat Hostiles Destroyed 34 | . 10 . 24 Guns 33 | . 10 . 23 Classes Destroyed 11 | . 4 . 7 Worker 1 | . . . 1 Builder 1 | . . . 1 Tunneler 2 | . . . 2 Hauler 3 | . . . 3 Recycler 2 | . 1 . 1 Operator 1 | . 1 . . Watcher 2 | . . . 2 Swarmer 11 | . 3 . 8 Grunt 14 | . 7 . 7 Duelist 1 | . . . 1 Sentry 8 | . . . 8 Best Kill Streak 4 | . 3 . 4 Combat Bots Only 4 | . 3 . 4 Max Kills in Single Turn 1 | . 1 . 1 Gunslinging . | . . . . Exploded . | . . . . Melee . | . . . . Uniques/NPCs Destroyed . | . . . . Combat | -11 -10 -10 -9 -------- Run | Scr Mat Min Mat Damage Taken 1564 | . 422 . 1142 Core 262 | . 111 . 151 Absorbed by Shields . | . . . . Core Remaining (%) 77 | 100 . 55 . Volleys Fired 124 | . 47 1 76 Largest 2 | . 2 2 2 Hottest 130 | . 40 40 130 Shots Fired 248 | . 94 2 152 Gun 248 | . 94 2 152 Cannon . | . . . . Launcher . | . . . . Special . | . . . . Kinetic 96 | . 94 2 . Thermal 152 | . . . 152 Explosive . | . . . . Electromagnetic . | . . . . Robot Hit Streak 21 | . 11 1 21 Robot Miss Streak 4 | . 4 1 3 Penetration Max . | . . . . Secondary Targets 2 | . 1 . 1 Max Gunslinging Chain 1 | . 1 . 1 Shots Hit Robots 166 | . 65 1 100 Core Hits 77 | . 23 . 54 Critical Kills . | . . . . Critical Parts Destroyed . | . . . . Critical Strikes 9 | . . . 9 Burn 9 | . . . 9 Melee Attacks . | . . . . Impact . | . . . . Slashing . | . . . . Piercing . | . . . . Sneak Attacks . | . . . . Combat Hostiles . | . . . . Follow-up Attacks . | . . . . Damage Inflicted 2354 | . 664 9 1681 Guns 2354 | . 664 9 1681 Cannons . | . . . . Explosions . | . . . . Melee . | . . . . Ramming . | . . . . Kinetic 673 | . 664 9 . Thermal 1681 | . . . 1681 Explosive . | . . . . Electromagnetic . | . . . . Impact . | . . . . Slashing . | . . . . Piercing . | . . . . Highest Corruption . | . . . . Average Corruption . | . . . . Corruption Purged . | . . . . Corruption Blocked . | . . . . Overload Shots . | . . . . Overflow Damage . | . . . . Projectiles . | . . . . Explosions . | . . . . Melee . | . . . . Knockbacks . | . . . . Impact . | . . . . Kinetic . | . . . . Secondary . | . . . . Self-Inflicted Damage . | . . . . Shots . | . . . . Rammed . | . . . . Targets Rammed . | . . . . Kicked . | . . . . Crushed . | . . . . Highest Temperature 312 | . 20 10 312 Average Temperature 87 | . 7 7 100 Received Heat Transfer 450 | . 213 . 237 Effects 1 | . . . 1 Energy Bleed 1 | . . . 1 Siege Activations . | . . . . Robots Corrupted . | . . . . Combat Hostiles . | . . . . Parts Fried . | . . . . Impact Corruptions . | . . . . Robots Melted 1 | . . . 1 Combat Hostiles 1 | . . . 1 Parts Melted 21 | . . . 21 Heat Transferred 4570 | . . . 4570 Parts Sabotaged . | . . . . Parts Stolen . | . . . . Parts Stripped . | . . . . Power Chain Reactions . | . . . . Missiles Intercepted . | . . . . Alert | -11 -10 -10 -9 ------- Run | Scr Mat Min Mat Peak Influence 557 | . 225 48 557 Initial 48 | . . 48 . Average 181 | . 68 24 288 Maximum Alert Level 2 | . 1 . 2 Low Security (%) 57 | 100 97 100 25 Level 1 26 | . 2 . 45 Level 2 15 | . . . 28 Level 3 . | . . . . Level 4 . | . . . . Level 5 . | . . . . High Security . | . . . . Max Security . | . . . . Squads Dispatched 5 | . 3 . 2 Investigation 4 | . 2 . 2 Extermination . | . . . . Reinforcement 1 | . 1 . . Assault . | . . . . Garrison . | . . . . Intercept . | . . . . Searches Triggered . | . . . . Construction Impeded . | . . . . Haulers Reinforced . | . . . . Active Scanning Responses . | . . . . Cargo Convoy Interrupts . | . . . . Stealth | -11 -10 -10 -9 --------- Run | Scr Mat Min Mat Distress Signals 8 | . 4 . 4 Communications Jammed . | . . . . Distress Signals . | . . . . Times Spotted 64 | . 21 . 43 Peak Tracking Total 7 | . 4 . 7 Tactical Retreats 3 | . 2 . 1 Traps | -11 -10 -10 -9 ------- Run | Scr Mat Min Mat Traps Triggered 3 | . 2 . 1 Indirectly . | . . . . Trap Hack Attempts . | . . . . Triggered . | . . . . Disarmed . | . . . . Reprogrammed . | . . . . Reused . | . . . . Traps Extracted . | . . . . Installed . | . . . . Triggered . | . . . . Machines | -11 -10 -10 -9 ---------- Run | Scr Mat Min Mat Machines Disabled . | . . . . Max in Single Turn . | . . . . Machines Sabotaged . | . . . . Garrisons Compromised . | . . . . Overloaded Fab Kills . | . . . . Hacking | -11 -10 -10 -9 --------- Run | Scr Mat Min Mat Machines Accessed 14 | . 3 1 10 Terminals 14 | . 3 1 10 Fabricators . | . . . . Repair Stations . | . . . . Recycling Units . | . . . . Scanalyzers . | . . . . Garrison Access . | . . . . Total Hacks 36 | . 9 2 25 Successful 17 | . 3 2 12 Failed 19 | . 6 . 13 Catastrophic 1 | . . . 1 Database Lockouts . | . . . . Manual 35 | . 8 4 23 Terminals 36 | . 9 2 25 Fabricators . | . . . . Repair Stations . | . . . . Recycling Units . | . . . . Scanalyzers . | . . . . Garrison Access . | . . . . Terminal Hacks 5 | . . 2 3 Robot Analysis 4 | . . 2 2 Branch Access Points 1 | . . . 1 Fabricator Hacks . | . . . . Repair Station Hacks . | . . . . Recycling Unit Hacks . | . . . . Scanalyzer . | . . . . Garrison Access Hacks . | . . . . Unauthorized Hacks 12 | . 3 . 9 Terminals 12 | . 3 . 9 Botnet 10 | . 2 . 8 Operators 2 | . 1 . 1 Fabricators . | . . . . Repair Stations . | . . . . Recycling Units . | . . . . Scanalyzers . | . . . . Garrison Access . | . . . . Data Cores Recovered . | . . . . Used . | . . . . Hacking Detections 13 | . 3 1 9 Full Trace Events 1 | . . . 1 Feedback Events . | . . . . Feedback Blocked . | . . . . Robot Schematics Acquired . | . . . . Robots Built . | . . . . Authchips . | . . . . Time . | . . . . Total Robot Build Rating . | . . . . Part Schematics Acquired . | . . . . Parts Built . | . . . . Authchips . | . . . . Time . | . . . . Total Part Build Rating . | . . . . Parts Repaired . | . . . . Time . | . . . . Parts Recycled . | . . . . Recycled Matter . | . . . . Retrieved Matter . | . . . . Retrieved Components . | . . . . Parts Scanalyzed . | . . . . Part Schematics Acquired . | . . . . Parts Damaged . | . . . . Bothacking | -11 -10 -10 -9 ------------ Run | Scr Mat Min Mat Used RIF Installer . | . . . . Robots Hacked . | . . . . Non-combat . | . . . . Combat . | . . . . Robot Hacks Applied . | . . . . Relay Couplers Released . | . . . . Fabnet Peak Effective % . | . . . . Robots Rewired . | . . . . Allies Hacked . | . . . . Hacks Repelled . | . . . . Allies | -11 -10 -10 -9 -------- Run | Scr Mat Min Mat Total Allies 2 | . . 2 . Largest Group 2 | . . 2 2 Highest-Rated Group 38 | . . 38 38 Highest-Rated Ally 31 | . . 31 31 Total Orders . | . . . . Ally Attacks 20 | . . . 20 Total Damage 316 | . . . 316 Kills 8 | . . . 8 Allies Corrupted . | . . . . Allies Melted . | . . . . Intel | -11 -10 -10 -9 ------- Run | Scr Mat Min Mat Robot Analysis Total 4 | . . 2 2 Derelict Logs Recovered 1 | . . 1 . Drone Launches . | . . . . Drone Recoveries . | . . . . Exploration | -11 -10 -10 -9 ------------- Run | Scr Mat Min Mat Turns Passed 4767 | 132 1105 867 2663 Spaces Moved 2146 | 79 377 536 1154 Core 4 | 4 . . . Treads 2142 | 75 377 536 1154 Legs . | . . . . Wheels . | . . . . Hover . | . . . . Flight . | . . . . Fastest Speed 50 | 50 160 160 160 Average Speed 179 | 154 160 160 196 Slowest Speed 240 | 160 160 160 240 Overloaded Moves . | . . . . Propulsion Burnouts . | . . . . Robots Hopped . | . . . . Cave-ins Triggered . | . . . . Exploration Rate (%) 63 | 5 56 99 93 Regions Visited 3 Branch Regions 1 Pre-discovered Areas . | . . . . Known Exits Taken . | . . . . Unknown Exits Taken 3 | 1 1 1 . Scrap Searched 3 | . . 3 . Spaces Dug . | . . . . Terrain Destroyed . | . . . . Melee . | . . . . Projectile . | . . . . AOE . | . . . . Terrain Rammed . | . . . . Walls Destroyed . | . . . . Machines Disabled . | . . . . Actions | -11 -10 -10 -9 --------- Run | Scr Mat Min Mat Total 2834 | 86 796 544 1408 Wait 441 | 1 344 2 94 Move 2143 | 78 376 535 1154 Hop . | . . . . Pick Up 32 | 1 15 2 14 Fast Attach 20 | 6 3 1 10 Attach 6 | . . 1 5 Detach . | . . . . Swap 24 | . 4 . 20 Drop 44 | . 7 2 35 Fire 124 | . 47 1 76 Melee . | . . . . Ram . | . . . . Kick . | . . . . Crush . | . . . . Escape Stasis . | . . . . Rewire . | . . . . Trap . | . . . . Miscellaneous . | . . . . Route ------- -11/Scrapyard -10/Materials -10/Mines (discovered 2 exits: *Mat x2) -9/Materials (discovered 4 exits: *Mat x3 / *Min) History --------- Turn | Location | Event 5 | -11/Scrapyard | Discovered new exit (range 15) 133 | -11/Scrapyard | Entered Materials 309 | -10/Materials | Build established: Mutant 855 | -10/Materials | Discovered new exit (range 10) 1238 | -10/Materials | Entered Mines 1246 | -10/Mines | Met a Derelict bent on vengeance 1310 | -10/Mines | Found a damaged Exp. Sensor Array with a note attached 1314 | -10/Mines | Found Prototype Device 1314 | -10/Mines | Identified Exp. Sensor Array 1415 | -10/Mines | Deemed a non-threat by the Exiles lab entrance 1695 | -10/Mines | Discovered new exit (range 12) 1784 | -10/Mines | Discovered new exit (range 15) 2105 | -10/Mines | Entered Materials 2105 | -9/Materials | Accompanied by 2 allies 2105 | -9/Materials | Evolved 2 slots: Utility x2 2110 | -9/Materials | Led the pair of lost Derelicts to an unsafe place 2694 | -9/Materials | Discovered new exit (range 15) 3630 | -9/Materials | Discovered new exit (range 14) 4001 | -9/Materials | Identified exit to Materials 4202 | -9/Materials | Discovered exit to Materials (range 6) 4527 | -9/Materials | Discovered new exit (range 14) 4766 | -9/Materials | Identified exit to Mines 4768 | -9/Materials | Self-destructed Last Messages --------------- 04726_ R-06 Scavenger collects Lrg. Storage Unit. 04733_ Acquired 10 matter. 04734_ R-06 Scavenger collects Lgt. Treads. 04736_ K-01 Serf collects debris. 04744_ Dropped Imp. Ion Engine. 04749_ Dropped Lgt. Treads. 04755_ Acquired Imp. Treads. 04764_ K-01 Serf collects debris. 04766_ Connecting with Terminal... >>Trojan(Botnet) Trojan loaded successfully. Testing... Terminal linked with 7 systems. Awaiting botnet instructions. >>Access(Branch) Found 1 branch access point: (9,12) Mines Map updated. 04766_ ALERT: Suspicious activity at Terminal M003. Dispatching Investigation squad. Map ----- +----------------------------------------------------+ | ???????##########+###### ##### ### ## | | ??????? # #???#####?# ## | | """?????"" """ # #?????????# ## | | |||"#???"" """ + #?????????# ######+# | | ""#??"" """ # #?????????# ##### | | #? # ##### #?????????# | | > # ?# #???# #?????????####### | | #########?# #???# #???????????######+# | | #######???# #####+## #????######## | | ?# ???# # # #????# ! ##[ | | #?# #??# #% """ # #????# %<% ## | | #?# """ #??# # """ # #????# = ## | | #?#[ """ #??# #% """ # #????# ## | | #?# """????# % +% """ # ###### ######### | | ### ??????# %#* # #"""## # | | ##+######### =######## #"T"## # %= | | # | | % # | | " """"" + | | ## """"""""" [ % ""T"" # | | #+#### """ """ % """"" = # % | | ## %[[ ## | | ## % %[[ % %#"= | | ## ########%###### % #""""### # | | """## ############ #?# T # #????# # "## | | """## #????????### ###@ # #????# # #? | | """## #????????# # ] # #????# #########? | | ## #????????# # # #????# *#????????? | | """## #????????# % %+*k #+####?# =!#????????? | | """## #????????# # # """ !# !%#????????? | | """## #######??# #== # """ # =!#????????? | | ## # #??## ## = # """ +* =#????????? | | ## ??????# =## # # ! #????????? | | #+#### # ##??????#!% ### ### # #????????? | | # #??###%###???????# *[#?###?# ?# #????????? | | # #????# #?????????# #?????######?# ########## | | # #????# #?????????# #????????????# # | | # #????# #?????????# #????######### # | | # #????# #?????????# #????# + # | | # #??### ###???????# #????# """ ""# # | | # #### #?????### ###??# """ T"# + % | | # ####### #??# """ ""# # | | + #??# # # | | # ## #### #??######### # | | ###+## ## #??# #??????????# ########## | | ## ?######## #??# #??????????# #????????? | | ## ??####### #??# #??????????# #????????? | | ##!!??# #??# #########??# ########## | | ##!???# #??########## ! #??# | | ?#!???# ##???????????# #### | +----------------------------------------------------+ Best States ------------- Heat Dissipation 42 Energy Generation 14 Energy Capacity 265 Matter Stores 300 Matter Capacity 300 Sight Range 16 Terrain Scan Density 10 Armor Coverage 300 Utility Shielding 33 Evasion (%) 40 Targeting Accuracy 6 Recoil Reduction 2 Salvage Targeting 1 Item Schematics ----------------- None Robot Schematics ------------------ None Fabricated ------------ Nothing Alien Tech Used ----------------- None Achievements -------------- None Challenges ------------ None Game ------ Seed CoreWeightTreads Manual? 0 Play Time 00:17:27 Cumulative 321.2 hours Start 2022.06.11 @ 11:39:08 End 2022.06.11 @ 12:16:40 Sessions 3 Manual Loads 0 Difficulty Rogue Special Mode None Game No. 565 Rogue 410 Adventurer 148 Explorer 7 Win Type - Total 11 Types 9/0/1/1/0/0/0/0/0 Lore% 74 Gallery% 87 Achievement% 67 Wizard Run 0 Options --------- ASCII 0 Keyboard 0 Movement Numpad Keybinds 0 Fullscreen 1 Font 18/SmallcapsGlow Map View 76x50 Tactical HUD 1 Map Filters NONE Filters NONE Steam 1 RUN: 890d66c2-51a2-4ae2-a04a-8a0fc64ecedc